[Event "Gideon Japhet ACP Open 2018"]
[Site "Jerusalem"]
[Date "2018.07.06"]
[Round "7"]
[White "Levin, Natan"]
[Black "Savelenko, Arseny"]
[Result "1-0"]
[ECO "B06"]
[WhiteElo "1849"]
[BlackElo "2011"]
[Annotator "NA"]
[PlyCount "115"]
[EventDate "2018.07.01"]
[EventType "swiss"]
[EventCountry "ISR"]
[SourceTitle "playchess.com"]
[Source "ChessBase"]
[SourceQuality "1"]
[TimeControl "40/5400+30:1800+30"]

1. e4 {[%emt 0:03:59]} g6 {[%emt 0:07:34]} 2. Nf3 {[%emt 0:01:24]} Bg7 {[%emt 0:00:05]} 3. d4 {[%emt 0:00:19]} d6 {[%emt 0:00:08]} 4. Be2 {[%emt 0:00:40]} Bg4 {[%emt 0:00:59]} 5. c3 {[%emt 0:02:50] B06: Moderne Verteidigung} (5. Nbd2 Nf6 6. h3 Bxf3 7. Bxf3 Nbd7 8. O-O O-O 9. c3 e5 10. Re1 Qe7 11. Nc4 Rfe8 12. Bg5 h6 {1-0 (64) Le Roux,J (2554)-Bitalzadeh,A (2390) chess.com INT 2018}) 5... Nd7 {[%emt 0:02:25]} 6. O-O {[%emt 0:00:13]} Bxf3 {[%emt 0:01:25]} 7. Bxf3 {[%emt 0:02:00]} e5 {[%emt 0:00:23]} 8. Be3 {[%emt 0:00:42]} Ngf6 $146 {[%emt 0:01:16]} ({Vorgänger:} 8... c6 9. Nd2 Ne7 10. d5 cxd5 11. exd5 f5 12. Bg5 {0-1 (31) Serrano Polo,C-Romero Naranjo,I Torremolinos 2003}) 9. Qb3 {[%emt 0:00:53]} Qc8 {[%emt 0:00:48]} 10. Nd2 {[%emt 0:00:43]} O-O {[%emt 0:00:49]} 11. Rac1 {[%emt 0:01:38]} Re8 {[%emt 0:01:25]} 12. h3 {[%emt 0:03:19]} Nf8 {[%emt 0:00:42]} 13. Rfe1 {[%emt 0:00:42]} Ne6 {[%emt 0:00:05]} 14. dxe5 {[%emt 0:00:14]} dxe5 {[%emt 0:00:09]} 15. Nc4 {[%emt 0:00:44]} Nd8 {[%emt 0:03:00]} 16. Rcd1 {[%emt 0:00:58]} Nc6 {[%emt 0:00:06]} 17. Bg5 {[%emt 0:00:50]} h5 {[%emt 0:07:09]} 18. Ne3 {[%emt 0:09:00]} Nd8 {[%emt 0:06:40]} 19. Nd5 {[%emt 0:09:42]} Nxd5 {[%emt 0:00:08]} 20. Rxd5 {[%emt 0:00:29]} Ne6 {[%emt 0:00:30]} 21. Be3 {[%emt 0:02:55]} c6 {[%emt 0:01:07]} 22. Rd2 {[%emt 0:01:01]} Rd8 {[%emt 0:19:37]} 23. Red1 {[%emt 0:01:52]} Rxd2 {[%emt 0:00:38]} 24. Rxd2 {[%emt 0:00:13]} Qc7 {[%emt 0:01:15]} 25. Qa4 {[%emt 0:03:41]} ({Better is} 25. g4 $14) 25... Bf8 {[%emt 0:02:23]} 26. b4 {[%emt 0:01:48]} a5 {[%emt 0:01:22]} 27. a3 {[%emt 0:00:22]} b5 {[%emt 0:00:17]} 28. Qb3 {[%emt 0:00:51]} c5 {[%emt 0:07:03]} 29. Rd5 {[%emt 0:10:23]} axb4 {[%emt 0:06:15]} 30. axb4 {[%emt 0:00:20]} cxb4 {[%emt 0:01:03]} 31. cxb4 {[%emt 0:00:53]} Ra1+ {[%emt 0:00:13]} 32. Rd1 {[%emt 0:03:09]} Ra4 {[%emt 0:00:32]} 33. Qd5 {[%emt 0:01:50]} Rxb4 {[%emt 0:01:20]} 34. Qa8 {[%emt 0:03:22]} Kg7 {[%emt 0:05:55]} 35. Qe8 {[%emt 0:07:14]} Qe7 {[%emt 0:05:43]} 36. Qa8 {[%emt 0:06:27]} Qc7 {[%emt 0:11:19]} 37. Rd5 {[%emt 0:02:35]} Rb1+ {[%emt 0:00:23]} 38. Kh2 {[%emt 0:00:29]} Nd4 {[%emt 0:00:15]} 39. Bh6+ {[%emt 0:00:49]} Kxh6 {[%emt 0:00:13]} 40. Qxf8+ {[%emt 0:00:14]} Kg5 {[%emt 0:00:12]} 41. Bxh5 {[%emt 0:37:50]} Kxh5 $2 {[%emt 0:31:16]} (41... Qc1 $11 42. Qe7+ f6 43. Rxe5+ Nf5 44. Rxf5+ gxf5 45. Qg7+ Kf4 46. Qg3+ Kxe4 47. Bf3+ Kd3 48. Qd6+ Kc4) 42. Qh8+ {[%emt 0:01:34]} Kg5 {[%emt 0:00:04]} 43. Rxe5+ {[%emt 0:02:23]} f5 {[%emt 0:00:17]} 44. exf5 {[%emt 0:03:33]} Nxf5 {[%emt 0:02:24]} 45. g3 {[%emt 0:00:51]} Rb4 {[%emt 0:00:55]} 46. Re6 {[%emt 0:04:06]} Ng7 {[%emt 0:02:22]} 47. Re3 {[%emt 0:00:00]} Nf5 {[%emt 0:00:00]} 48. Re6 {[%emt 0:00:00]} Ng7 {[%emt 0:00:00]} 49. h4+ {[%emt 0:00:00]} Kf5 {[%emt 0:00:00]} 50. Re3 {[%emt 0:00:00]} Ne6 {[%emt 0:00:00]} 51. Rf3+ {[%emt 0:00:00]} Kg4 {[%emt 0:00:00]} 52. Rf6 {[%emt 0:00:00]} Qc2 {[%emt 0:00:00]} 53. Qh6 {[%emt 0:00:00]} Rc4 {[%emt 0:05:31]} 54. Rxg6+ {[%emt 0:00:00]} Kf5 {[%emt 0:00:15]} 55. Qh5+ {[%emt 0:00:00]} Ke4 {[%emt 0:00:04]} 56. Rxe6+ {[%emt 0:00:00]} Kd3 {[%emt 0:00:07]} 57. Re3+ {[%emt 0:00:00]} Kd2 58. Re2+ 1-0